bitfinex/quotes_ETHUSD_20260228
["timestamp","ask_amount","ask_price","bid_price","bid_amount"]
[1772295168479,1.7929955,1900.2,1899.8,4.16825584]
[1772295169384,0.47729963,1900.1,1899.8,4.16825584]
[1772295170480,0.47729963,1900.3,1899.8,4.16825584]
[1772295170680,0.47729963,1900.3,1899.9,4.16825584]
[1772295170881,0.47729963,1900.6,1899.9,4.64305177]
[1772295171178,0.47729963,1900.6,1900.0,4.16825584]
[1772295172482,0.47729963,1900.4,1900.0,4.16825584]
[1772295172791,0.47729963,1900.4,1900.1,4.16825584]
[1772295172985,0.47729963,1900.4,1899.9,4.16825584]
[1772295173669,0.47729963,1900.4,1899.9,4.64305177]
[1772295174597,0.47729963,1900.2,1900.0,4.16825584]
[1772295174897,0.47729963,1900.2,1899.7,1.79176529]
[1772295175101,0.47729963,1900.2,1899.8,4.16825584]
[1772295175722,0.47729963,1900.2,1899.9,4.16825584]
[1772295175881,0.47729963,1900.2,1899.8,4.16825584]
[1772295176192,1.31558175,1900.3,1899.8,4.64305177]
[1772295176377,1.31558175,1900.3,1899.9,4.16825584]
[1772295176576,1.79282138,1900.4,1899.9,5.95890987]
[1772295176782,1.79282138,1900.4,1899.8,5.26357403]
[1772295176783,1.79267533,1900.6,1900.1,0.47479593]
[1772295176999,0.47729963,1900.5,1899.9,5.95890865]
[1772295177975,0.47729963,1900.5,1900.0,4.16825584]
[1772295178283,0.47729963,1900.5,1899.9,4.16825584]
[1772295178663,1.79281215,1900.4,1899.9,5.48408953]
[1772295179266,1.79281215,1900.4,1899.9,5.48508953]
[1772295179498,1.79481215,1900.4,1899.9,5.48508953]
[1772295179971,1.79481215,1900.4,1899.9,4.16925584]
[1772295180173,1.79481215,1900.4,1899.9,5.48510474]
[1772295180768,1.79291989,1900.3,1900.0,4.16825584]
[1772295182076,0.47729963,1900.2,1900.0,4.16825584]
[1772295183295,0.002,1900.5,1900.1,0.47479593]
[1772295183595,0.002,1900.5,1900.2,0.47479593]
[1772295183994,0.002,1900.5,1900.3,4.64305177]
[1772295184191,0.002,1900.5,1900.3,0.47479593]
[1772295184695,0.002,1901.2,1900.5,0.47479593]
[1772295184897,0.002,1901.2,1900.6,0.47479593]
[1772295185098,0.47729963,1901.0,1900.6,4.16625584]
[1772295185270,1.79246613,1900.9,1900.6,4.16625584]
[1772295185597,0.47729963,1900.8,1900.2,0.47479593]
[1772295187277,1.31530488,1900.7,1900.2,0.47479593]
[1772295187581,1.31530488,1900.7,1900.2,1.79044117]
[1772295188696,1.31530488,1900.7,1900.2,0.47479593]
[1772295188697,1.79260451,1900.7,1900.2,0.47479593]
[1772295189612,1.79260451,1900.7,1900.2,1.79044501]
[1772295189914,0.47729963,1900.9,1900.3,0.47479593]
[1772295190803,0.47929963,1901.1,1900.3,0.47479593]
[1772295191222,0.002,1901.1,1900.3,0.47479593]
[1772295191389,1.31703079,1901.1,1900.3,0.47479593]
[1772295191584,1.31703079,1901.1,1900.5,0.47479593]
[1772295192103,0.47729963,1901.0,1900.4,1.31551252]
[1772295192510,0.47729963,1901.0,1900.3,1.79037127]
[1772295192813,0.47729963,1901.0,1900.2,2.059]
[1772295192814,0.47729963,1901.0,1900.2,3.37464577]
[1772295193014,0.002,1901.1,1900.4,0.47479593]
[1772295193214,0.47729963,1900.9,1900.3,0.001]
[1772295193712,0.47729963,1900.9,1900.3,0.47579593]
[1772295193917,1.31523569,1900.8,1900.3,1.31653039]
[1772295194082,1.79250636,1900.9,1900.4,0.47479593]
[1772295195502,1.31714075,1901.0,1900.4,0.47479593]
[1772295196242,0.46665351,1900.9,1900.4,0.47479593]
[1772295196541,0.46665351,1900.9,1900.3,1.31654224]
[1772295197127,0.46665351,1900.9,1900.3,0.001]
[1772295198526,0.46665351,1900.6,1900.2,0.001]
[1772295199326,0.46665351,1900.6,1900.0,0.001]
[1772295200899,0.46665351,1900.4,1900.0,0.001]
[1772295202205,0.46665351,1900.4,1899.9,0.001]
[1772295203509,0.46665351,1900.2,1899.9,0.001]
[1772295203722,0.46665351,1900.2,1899.8,0.001]
[1772295206536,0.46665351,1900.5,1899.9,0.45807204]
[1772295206715,0.46865351,1900.5,1899.9,0.45807204]
[1772295208431,0.46665351,1899.9,1899.7,0.001]
[1772295209225,0.46665351,1899.9,1899.6,0.001]
[1772295209425,0.46665351,1899.9,1899.6,0.002]
[1772295211015,1.7825815,1899.8,1899.6,0.002]
[1772295211212,1.7825815,1899.8,1899.5,0.001]
[1772295211845,0.46665351,1899.7,1899.5,0.001]
[1772295212232,0.46665351,1899.7,1898.9,0.45707204]
[1772295212438,0.46665351,1899.5,1898.9,0.45707204]
[1772295212635,5.0438062,1899.3,1898.8,0.001]
[1772295212950,0.46665351,1899.0,1898.8,0.001]
[1772295213134,0.46665351,1898.9,1897.8,0.45707204]
[1772295213313,0.46665351,1898.9,1898.2,0.45807204]
[1772295213641,0.46665351,1898.8,1898.2,0.45807204]
[1772295213813,0.46665351,1898.8,1898.2,0.001]
[1772295214343,0.46665351,1898.8,1898.0,0.001]
[1772295214526,0.46665351,1898.6,1898.0,0.001]
[1772295215049,0.46665351,1898.4,1898.0,0.001]
[1772295216414,0.46665351,1898.1,1898.0,0.001]
[1772295216746,0.46665351,1898.3,1898.0,0.001]
[1772295217116,0.46665351,1898.1,1897.5,0.45707204]
[1772295217314,0.46665351,1898.1,1897.3,0.45707204]
[1772295219348,5.73436819,1898.4,1897.4,0.45707204]
[1772295219529,5.73436819,1898.4,1898.0,0.001]
[1772295220951,0.46665351,1898.3,1898.0,0.001]
[1772295221131,1.31703719,1898.2,1898.0,0.001]
[1772295222147,5.26770948,1898.4,1898.0,0.001]
[1772295222391,5.73436299,1898.4,1898.0,0.001]
[1772295222550,1.31888117,1898.5,1898.0,0.001]
[1772295222866,1.31883896,1898.5,1898.0,0.45807204]
[1772295223154,0.002,1898.5,1898.0,0.001]
[1772295223343,1.31883158,1898.5,1898.0,0.45807204]
[1772295224661,0.002,1898.5,1898.0,0.45807204]
[1772295225252,0.002,1898.8,1898.2,0.4658778]
[1772295227257,0.002,1898.8,1898.3,1.31696781]
[1772295227422,0.002,1898.8,1898.4,0.48017731]
[1772295229325,0.002,1898.8,1898.5,1.79700638]
[1772295229921,0.002,1898.8,1898.6,0.48017731]
[1772295232250,0.002,1898.8,1898.7,1.31669036]
[1772295232559,0.002,1898.8,1898.7,1.31769036]
[1772295233260,0.002,1898.8,1898.7,0.001]
[1772295233647,1.31638087,1899.2,1898.7,0.48117731]
[1772295233854,0.002,1899.0,1898.7,0.48117731]
[1772295234156,0.002,1899.0,1898.8,1.31662102]
[1772295234358,0.002,1899.0,1898.7,0.48117731]
[1772295236166,0.002,1899.0,1898.9,1.31655168]
[1772295236462,0.002,1899.0,1898.9,1.79672899]
[1772295237531,0.002,1899.0,1898.9,0.48017731]
[1772295237733,0.002,1899.0,1898.7,0.001]
[1772295239909,0.47996984,1899.0,1898.7,0.001]
[1772295240187,0.47996984,1899.0,1898.5,0.001]
[1772295240343,1.79646519,1899.0,1898.5,0.48117731]
[1772295240775,0.47996984,1899.0,1898.5,0.48117731]
[1772295240945,1.31848485,1899.0,1898.5,0.48117731]
[1772295244490,0.47996984,1899.0,1898.5,1.79795824]
[1772295245672,0.47996984,1899.0,1898.6,0.001]
[1772295245965,0.002,1898.9,1898.6,0.001]
[1772295247957,0.002,1898.9,1898.6,0.48117731]
[1772295248156,0.002,1899.2,1898.8,0.48017731]
[1772295248357,0.002,1899.2,1898.9,1.79672899]
[1772295248871,0.002,1899.2,1898.9,0.48017731]
[1772295250974,0.002,1899.2,1898.9,1.79666998]
[1772295252274,0.002,1899.2,1899.0,0.48017731]
[1772295252689,0.002,1899.2,1898.9,1.31649267]
[1772295252875,0.002,1899.2,1898.9,1.79666998]
[1772295254294,0.002,1899.2,1899.0,0.48017731]
[1772295254473,1.79392951,1899.8,1899.1,0.48017731]
[1772295254673,0.47796984,1899.7,1898.9,1.79666998]
[1772295255278,0.47796984,1899.7,1898.9,0.48017731]
[1772295255279,0.47796984,1899.5,1898.9,0.48017731]
[1772295256692,0.47796984,1899.5,1898.9,1.79672885]
[1772295257195,1.31620511,1899.4,1898.9,1.79672885]
[1772295257997,1.79899311,1899.4,1898.9,1.79672885]
[1772295258870,0.482788,1899.4,1899.0,0.46456938]
[1772295259474,0.002,1900.5,1899.3,21.65937678]
[1772295259671,0.008,1901.9,1901.3,12.327414]
[1772295259974,0.480788,1902.0,1901.3,0.46456938]
[1772295259975,0.23870773,1902.0,1901.3,0.46456938]
[1772295260174,0.32283182,1902.3,1901.7,0.633786]
[1772295260477,1.3140887,1902.5,1901.7,0.633786]
[1772295260478,1.31406044,1902.5,1901.7,12.327414]
[1772295261280,3.60989613,1902.1,1901.2,0.46456938]
[1772295261484,3.60989613,1902.1,1901.3,1.77945919]
[1772295261674,3.60989613,1902.1,1901.5,12.327414]
[1772295261875,4.92423948,1902.1,1901.4,12.327414]
[1772295262392,1.65456137,1902.2,1901.5,12.327414]
[1772295265478,1.65456137,1902.2,1901.5,13.64215892]
[1772295265678,1.65456137,1902.2,1901.5,0.46456938]
[1772295268319,3.95014322,1901.7,1900.9,1.77973588]
[1772295268521,3.95014322,1901.5,1900.7,1.77984051]
[1772295268817,0.34024709,1901.5,1900.7,1.77984051]
[1772295269017,3.95014322,1901.5,1900.7,1.77987375]
[1772295269218,3.95014322,1901.7,1900.8,0.46456938]
[1772295269423,1.31468237,1901.6,1900.9,1.3151665]
[1772295270208,1.31452911,1901.9,1901.0,0.46456938]
[1772295270605,5.25743485,1902.1,1901.4,0.001]
[1772295270798,5.25743485,1902.1,1901.4,0.46556938]
[1772295271002,5.25943485,1902.1,1901.4,0.46556938]
[1772295271406,5.25943485,1902.1,1901.4,1.7803661]
[1772295275032,5.25943485,1902.1,1901.5,0.46456938]
[1772295277741,5.59968194,1902.1,1901.5,0.46456938]
[1772295277911,0.34024709,1902.0,1901.4,0.001]
[1772295278118,0.34024709,1902.0,1901.1,0.001]
[1772295278119,0.34024709,1901.8,1901.1,0.001]
[1772295278317,1.65386033,1901.7,1901.1,0.001]
[1772295278524,1.31461324,1901.7,1901.1,0.46556938]
[1772295278728,1.31454411,1901.8,1901.1,0.46556938]
[1772295281942,5.25812012,1901.9,1901.2,0.46456938]
[1772295283662,5.59736721,1901.9,1901.2,0.46456938]
[1772295283862,5.25812012,1901.9,1901.2,0.46456938]
[1772295284081,5.25812012,1901.9,1901.4,0.47010398]
[1772295286659,4.18801258,1902.0,1901.5,0.46267787]
[1772295286660,0.002,1902.0,1901.5,0.46267787]
[1772295286836,1.31641291,1902.0,1901.5,0.46267787]
[1772295288651,0.002,1902.0,1901.4,1.77744982]
[1772295288858,0.002,1902.0,1901.5,0.46267787]
[1772295290368,0.34124709,1902.0,1901.3,1.77856549]
[1772295290572,0.34124709,1902.0,1901.3,0.46367787]
[1772295290745,1.31447499,1901.9,1901.4,0.46267787]
[1772295290940,8.86945646,1902.1,1901.3,1.31588018]
[1772295290941,0.002,1902.1,1901.6,0.46267787]
[1772295291351,0.002,1902.2,1901.6,0.46267787]
[1772295291768,0.34124709,1903.6,1901.7,0.46267787]
[1772295291986,0.34124709,1902.9,1902.0,0.46267787]
[1772295292153,3.95114322,1902.8,1902.0,0.46267787]
[1772295292674,1.31399138,1902.6,1902.0,0.46267787]
[1772295292882,1.31399138,1902.6,1902.1,0.46267787]
[1772295296657,1.65523847,1902.6,1902.1,0.46267787]
[1772295297161,0.002,1902.5,1902.1,0.46267787]
[1772295298573,0.002,1902.5,1901.4,3.61089613]
[1772295298783,1.31412952,1902.4,1901.6,0.46267787]
[1772295298954,1.31412952,1902.4,1901.7,0.46267787]
[1772295301067,0.34124709,1902.3,1901.7,0.46267787]
[1772295303408,1.31426769,1902.2,1901.7,0.46267787]
[1772295305802,1.31412952,1902.4,1901.8,0.46267787]
[1772295306098,0.34124709,1902.3,1901.8,0.46267787]
[1772295306501,0.34124709,1902.3,1901.5,0.46267787]
[1772295306670,0.4852572,1902.2,1901.5,0.46267787]
[1772295307183,0.4852572,1901.8,1901.2,0.001]
[1772295307674,0.4852572,1901.6,1901.2,0.001]
[1772295308776,1.31461324,1901.7,1901.2,0.001]
[1772295308982,1.31461324,1901.7,1901.2,0.46367787]
[1772295309794,1.31461324,1901.7,1901.2,1.77859938]
[1772295310003,1.31461324,1901.7,1901.3,0.46267787]
[1772295310302,1.31461324,1901.7,1901.5,0.001]
[1772295311068,5.25791536,1901.9,1901.5,0.001]
[1772295311069,5.25804818,1901.9,1901.5,0.001]
[1772295311270,5.25776507,1902.0,1901.5,0.46367787]
[1772295311768,1.31440588,1902.1,1901.5,0.46367787]
[1772295311769,5.25744013,1902.1,1901.5,0.46367787]
[1772295312075,4.63769337,1902.2,1901.6,0.46267787]
[1772295312699,3.32342568,1902.2,1901.6,0.46267787]
[1772295312904,4.63772182,1902.2,1901.6,0.46267787]
[1772295313324,3.3603526,1901.7,1901.6,0.46267787]
[1772295313490,3.3603526,1901.7,1901.6,0.41005705]
[1772295314087,4.63772182,1902.2,1901.7,0.46267787]
[1772295314699,4.63772182,1902.2,1901.5,1.77837943]
[1772295314700,5.12297902,1902.2,1901.5,1.77837943]
[1772295315421,5.12297902,1902.2,1901.6,0.46267787]
[1772295317327,1.89664379,1902.3,1901.6,0.46267787]
[1772295317528,0.002,1902.4,1901.6,0.46082404]
[1772295317731,9.89864379,1902.4,1901.6,0.46082404]
[1772295318034,10.3658138,1902.3,1901.6,0.46082404]
[1772295318835,1.31426769,1902.2,1901.7,1.77543728]
[1772295318998,1.31426769,1902.2,1901.8,0.46082404]
[1772295319194,9.89664379,1902.1,1901.8,0.46082404]
[1772295319398,7.5,1902.3,1901.8,0.46082404]
[1772295319704,9.39664379,1902.3,1901.8,0.46082404]
[1772295320468,0.002,1902.4,1901.8,0.46082404]
[1772295320628,9.39864379,1902.4,1901.8,0.46082404]
[1772295320827,0.002,1902.4,1902.0,0.39337396]
[1772295322054,9.39664379,1902.3,1901.9,1.31447499]
[1772295322267,9.39664379,1902.3,1901.9,1.70784895]
[1772295322465,0.002,1902.2,1901.9,1.70784895]
[1772295323954,9.39864379,1902.2,1901.8,1.31449821]
[1772295324154,9.39864379,1902.2,1901.7,3.7299872]
[1772295324155,9.39664379,1902.1,1901.7,3.7299872]
[1772295326056,1.3143526,1902.1,1901.7,2.022]
[1772295326268,9.39664379,1902.0,1901.7,0.001]
[1772295326463,1.31436835,1902.1,1901.5,0.39437396]
[1772295326464,0.46917001,1901.9,1901.5,0.001]
[1772295326630,7.96917001,1901.9,1901.5,0.001]
[1772295326832,7.5,1901.9,1901.5,0.001]
[1772295327037,1.31468237,1901.6,1901.2,0.001]
[1772295327975,0.46917001,1901.7,1901.2,0.001]
[1772295328142,7.5,1901.5,1901.2,0.001]
[1772295328735,0.46917001,1901.9,1901.2,0.39437396]
[1772295328961,1.78365227,1901.9,1901.2,0.39437396]
[1772295329164,5.2575347,1902.1,1901.3,1.31488981]
[1772295329165,5.25750089,1902.1,1901.3,1.31488981]
[1772295329375,9.00126983,1902.0,1901.4,5.04014329]
[1772295329540,9.00126983,1902.0,1901.3,1.31488981]
[1772295329541,7.10662604,1902.0,1901.3,1.31488981]
[1772295329748,9.00126983,1902.0,1901.3,1.31488981]
[1772295330538,9.00126983,1902.0,1901.4,5.04014329]
[1772295330777,0.002,1902.2,1901.4,5.04014329]
[1772295330778,0.002,1902.2,1901.5,2.021]
[1772295331071,0.002,1902.3,1901.6,1.31468237]
[1772295331487,0.002,1902.6,1901.7,5.04014329]
[1772295333072,1.31412952,1902.4,1901.6,3.33568237]
[1772295333931,1.8141097,1902.5,1901.6,3.33568237]
[1772295334163,0.5,1902.4,1901.6,3.33568237]
[1772295335060,0.5,1902.4,1901.7,0.001]
[1772295335283,1.81416023,1902.4,1901.7,0.001]
[1772295335856,0.5,1902.3,1901.7,0.001]
[1772295337573,1.31416461,1902.4,1901.7,0.001]
[1772295338070,1.81416461,1902.4,1901.7,0.001]
[1772295338267,1.31610685,1902.5,1901.7,0.001]
[1772295338467,1.31606251,1902.5,1901.7,0.001]
[1772295338783,0.002,1902.5,1901.8,5.04014329]
[1772295339021,0.002,1902.5,1902.1,5.04014329]
[1772295339280,0.002,1902.5,1902.2,2.019]
[1772295339586,0.002,1902.6,1902.3,1.3141986]
[1772295340280,0.002,1902.6,1902.0,2.019]
[1772295340859,0.502,1902.6,1902.0,2.019]
[1772295341782,1.81601013,1902.6,1902.1,1.31433678]
[1772295342472,0.5,1902.5,1902.0,2.019]
[1772295342689,0.5,1902.5,1902.0,3.33340164]
[1772295343566,1.31600099,1902.6,1902.0,3.33340164]
[1772295343987,1.81600099,1902.6,1902.0,3.33340164]
[1772295344166,0.5,1902.5,1901.8,5.25805963]
[1772295344567,0.502,1902.6,1901.8,5.25805963]
[1772295345669,0.5,1902.5,1901.8,5.25805963]
[1772295345866,0.5,1902.5,1901.8,1.31454411]
[1772295346197,0.5,1902.5,1901.7,1.31556063]
[1772295347777,0.5,1902.3,1901.7,1.31556063]
[1772295349901,1.81426769,1902.2,1901.7,1.31556063]
[1772295350497,1.31426769,1902.2,1901.7,1.31556063]
[1772295350689,0.5,1902.1,1901.7,0.001]
[1772295350889,0.4995,1901.9,1901.5,0.001]
[1772295351472,0.4995,1901.8,1901.5,0.001]
[1772295351801,0.4995,1901.8,1901.1,0.001]
[1772295352096,0.4995,1901.6,1901.1,0.001]
[1772295354408,1.81404411,1901.8,1901.1,0.001]
[1772295355101,0.4995,1901.7,1901.1,0.001]
[1772295357006,0.4995,1901.5,1901.0,0.001]
[1772295359408,1.31482065,1901.4,1901.1,0.001]
[1772295360307,1.81366048,1901.7,1901.1,0.001]
[1772295362000,0.499,1901.5,1901.1,0.001]
[1772295362387,0.499,1901.5,1901.0,0.001]
[1772295364517,0.4985,1901.3,1901.0,0.001]
[1772295369128,1.81345569,1901.3,1901.0,0.001]
[1772295372028,1.81345569,1901.3,1901.1,0.001]
[1772295373446,0.4985,1901.2,1901.0,0.001]
[1772295373651,0.4985,1901.2,1900.8,0.001]
[1772295373954,0.498,1901.0,1900.8,0.001]
[1772295375250,0.498,1901.0,1900.2,3.32558175]
[1772295375251,0.498,1901.0,1900.2,3.32959859]
[1772295376055,1.3151665,1900.9,1900.2,3.32959859]
[1772295376226,1.8131665,1900.9,1900.2,3.32959859]
[1772295376425,0.498,1900.8,1900.2,3.32959859]
[1772295377427,1.81288981,1901.3,1900.4,0.004]
[1772295378025,0.498,1901.2,1900.4,0.004]
[1772295378254,1.81302814,1901.1,1900.4,1.31951252]
[1772295379056,0.498,1901.0,1900.2,3.32960755]
[1772295379357,0.498,1901.0,1900.3,0.004]
[1772295380252,1.8131665,1900.9,1900.3,0.004]
[1772295381865,0.498,1901.1,1900.3,0.004]
[1772295382176,1.31488981,1901.3,1900.7,0.004]
[1772295382769,1.81288981,1901.3,1900.7,0.004]
[1772295383662,0.498,1901.2,1900.7,0.004]
[1772295384081,0.498,1901.2,1900.5,1.31542372]
[1772295384286,0.498,1901.0,1900.3,1.31558175]
[1772295384450,0.498,1901.0,1900.3,1.31658175]
[1772295384767,0.002,1900.8,1900.3,1.31658175]
[1772295385157,0.5,1900.8,1900.3,1.31658175]
[1772295387467,0.002,1900.8,1900.3,1.32058175]
[1772295388052,0.5,1900.8,1900.3,1.32058175]
[1772295389152,0.5,1900.8,1900.3,1.31658175]
[1772295389153,1.81523626,1900.8,1900.3,1.31658175]
[1772295390164,0.498,1900.7,1900.3,1.31658175]
[1772295391277,0.498,1900.7,1900.3,0.001]
[1772295391572,1.81337409,1900.6,1900.3,0.001]
[1772295391976,0.498,1900.6,1900.3,0.001]
[1772295393851,1.81526875,1900.8,1900.3,0.001]
[1772295394270,0.498,1900.7,1900.3,0.001]
[1772295394776,0.498,1900.7,1900.0,0.001]
[1772295396052,0.498,1900.7,1899.6,3.60066329]
[1772295396053,3.60066329,1900.5,1899.6,0.005]
[1772295396277,0.4975,1900.4,1899.6,0.005]
[1772295396651,0.4975,1900.4,1899.4,1.32120511]
[1772295396972,0.4975,1900.3,1899.4,1.31620511]
[1772295397153,0.4975,1900.1,1899.2,1.31629494]
[1772295397357,0.4975,1900.1,1899.1,1.31635814]
[1772295398163,0.4975,1899.9,1899.0,0.005]
[1772295398991,0.4975,1899.9,1899.8,0.001]
[1772295399179,0.4975,1899.9,1899.0,0.005]
[1772295400050,1.81339918,1899.9,1899.0,0.005]
[1772295400378,0.4975,1900.1,1899.3,0.005]
[1772295402367,0.4975,1900.1,1899.5,0.005]
[1772295402683,0.4975,1900.0,1899.3,1.31627441]
[1772295403102,0.4975,1900.2,1899.5,0.005]
[1772295405684,0.4975,1900.2,1899.5,1.32113582]
[1772295406608,0.4975,1900.2,1899.6,0.005]
[1772295407911,0.4975,1900.5,1899.7,0.005]
[1772295409912,0.4975,1900.4,1899.7,1.32099726]
[1772295410416,0.4975,1900.4,1899.7,1.31599726]
[1772295411715,0.4975,1900.4,1899.7,1.32099726]
[1772295412298,1.81302656,1900.4,1899.7,1.32099726]
[1772295412516,0.4975,1900.4,1899.7,1.31599726]
[1772295412715,0.4975,1900.4,1899.7,1.32099726]
[1772295413098,0.4975,1900.4,1899.8,0.005]
[1772295413516,1.81301498,1900.4,1899.8,0.005]
[1772295414113,0.4975,1900.3,1899.8,0.005]
[1772295414317,0.4975,1900.3,1899.7,1.31599726]
[1772295415519,0.4975,1900.3,1899.6,0.001]
[1772295415520,0.4975,1900.2,1899.6,0.001]
[1772295415713,0.4975,1900.2,1899.6,1.31705599]
[1772295416814,0.4975,1900.1,1899.6,0.001]
[1772295417808,0.4975,1900.1,1899.7,0.79259696]
[1772295418010,0.4975,1900.1,1899.5,0.001]
[1772295419416,0.46370132,1899.9,1899.5,0.001]
[1772295420306,1.31578947,1900.0,1899.3,0.001]
[1772295420307,0.46370132,1899.6,1899.3,0.001]
[1772295420901,0.46370132,1899.6,1898.7,1.81301039]
[1772295421637,0.46370132,1899.4,1898.6,0.001]
[1772295422013,0.46370132,1899.6,1898.7,0.49636034]
[1772295422222,0.46370132,1899.5,1898.8,3.60066329]
[1772295422531,0.46370132,1899.5,1898.7,0.49636034]
[1772295423821,1.77984784,1899.5,1898.8,1.81398136]
[1772295424431,0.46370132,1899.5,1898.8,1.81398136]
[1772295424635,1.77984444,1899.5,1898.8,1.81398136]
[1772295424805,0.46370132,1899.5,1898.8,1.81398136]
[1772295425010,1.77984787,1899.5,1898.8,1.81398136]
[1772295425210,0.46370132,1899.5,1898.8,1.81398136]
[1772295425412,1.77983842,1899.5,1898.8,1.81398136]
[1772295425641,0.46370132,1899.5,1898.8,1.81398136]
[1772295425821,1.77984376,1899.5,1898.8,1.81398136]
[1772295426022,0.46370132,1899.5,1898.9,0.49636034]
[1772295426226,0.46370132,1899.5,1898.8,1.31759846]
[1772295426227,0.46370132,1899.4,1898.8,1.31759846]
[1772295426542,0.46370132,1899.4,1898.6,0.001]
[1772295426733,0.46370132,1899.2,1898.6,0.001]
[1772295427439,0.46370132,1899.4,1898.7,1.40832694]
[1772295427737,0.46370132,1899.4,1898.7,0.9119666]
[1772295427939,0.46370132,1899.2,1898.7,0.9119666]
[1772295429920,0.46370132,1899.0,1898.7,0.9119666]
[1772295432041,0.46370132,1898.8,1898.6,0.001]
[1772295433938,0.46370132,1899.0,1898.6,0.001]
[1772295434331,0.46370132,1899.3,1898.6,0.49736034]
[1772295434656,1.77998697,1899.3,1898.6,0.49736034]
[1772295436237,1.77998697,1899.3,1898.7,1.31669036]
[1772295436941,1.80027337,1899.5,1898.8,0.45570891]
[1772295437337,1.80027337,1899.5,1897.9,0.38546869]
[1772295437338,0.48413091,1898.8,1897.9,0.38546869]
[1772295437539,0.48413091,1898.5,1897.7,1.77307979]
[1772295437858,5.37160139,1898.3,1897.5,0.45570891]
[1772295438161,1.63510951,1898.2,1897.5,0.45570891]
[1772295439171,0.48413091,1898.1,1897.2,1.31770767]
[1772295439367,1.31703719,1898.2,1897.3,0.45570891]
[1772295439568,1.8011681,1898.2,1897.3,0.45570891]
[1772295440139,1.31703719,1898.2,1897.4,1.31759249]
[1772295440466,1.31703719,1898.2,1896.6,11.68881727]
[1772295440467,0.48413091,1897.7,1896.7,0.45570891]
[1772295440965,0.48413091,1897.5,1896.4,0.45570891]
[1772295441159,0.48413091,1897.4,1896.4,1.77398969]
[1772295441747,0.48413091,1897.4,1896.5,0.45570891]
[1772295442067,0.48413091,1897.7,1896.5,0.45570891]
[1772295442255,0.48413091,1897.7,1896.8,0.45570891]
[1772295442256,1.31741797,1897.7,1896.8,0.45570891]
[1772295442569,1.31727564,1897.9,1896.8,0.45570891]
[1772295443143,1.80134789,1898.0,1896.8,0.45570891]
[1772295443342,1.31721698,1898.0,1897.1,0.45570891]
[1772295444368,1.31721698,1898.0,1897.2,1.7734403]
[1772295444746,3.23015495,1898.1,1897.3,0.45570891]
[1772295444949,1.80114225,1898.3,1897.3,0.45570891]
[1772295445849,5.26732271,1898.5,1897.4,0.45570891]
[1772295445850,5.26747148,1898.5,1897.4,0.45570891]
[1772295446049,5.75160239,1898.5,1897.4,0.45570891]
[1772295447170,5.75160239,1898.5,1897.6,0.45570891]
[1772295447374,1.80095998,1898.5,1897.6,0.45570891]
[1772295447558,1.31681269,1898.6,1897.6,0.45570891]
[1772295448363,0.48413091,1898.5,1897.6,0.45570891]
[1772295449683,1.31682195,1898.6,1897.8,0.45570891]
[1772295449983,7.17993627,1898.7,1897.8,0.45570891]
[1772295449984,1.913,1898.7,1897.8,0.45570891]
[1772295450168,1.3166569,1898.8,1897.9,0.45570891]
[1772295450368,1.31655663,1898.9,1897.9,0.45570891]
[1772295450781,1.80068754,1898.9,1897.9,0.45570891]
[1772295451280,0.48413091,1898.8,1897.9,0.45570891]
[1772295451656,1.31669036,1898.7,1898.0,1.31717597]
[1772295452062,1.31660725,1898.9,1898.1,0.45570891]
[1772295452587,1.80059864,1899.1,1898.1,0.45570891]
[1772295452761,1.3183856,1899.2,1898.2,0.45570891]
[1772295453789,1.3183856,1899.2,1898.4,0.45570891]
[1772295455888,1.3183856,1899.2,1898.5,1.31682907]
[1772295456420,0.48413091,1899.1,1898.4,0.45570891]
[1772295456572,0.48413091,1899.1,1898.2,1.31701028]
[1772295456899,0.48413091,1899.1,1898.3,0.45570891]
[1772295457282,1.3183856,1899.2,1898.3,0.45570891]
[1772295458194,1.3183856,1899.2,1898.5,0.45570891]
[1772295458195,0.48613091,1899.2,1898.5,0.45570891]
[1772295459406,0.48613091,1899.2,1898.4,2.133114]
[1772295459777,0.48613091,1899.2,1898.4,2.58882291]
[1772295460102,0.48613091,1899.2,1898.5,0.45570891]
[1772295460997,1.80254285,1899.2,1898.6,1.31675971]
[1772295462882,0.48413091,1899.1,1898.4,0.81621556]
[1772295465099,1.8183043,1899.0,1898.4,0.81621556]
[1772295465603,0.49982195,1898.9,1898.4,0.81621556]
[1772295466183,0.49982195,1898.9,1898.2,0.45570891]
[1772295466389,0.49982195,1898.9,1898.2,1.77274465]
[1772295468316,1.31662102,1898.8,1898.2,1.77274465]
[1772295468486,1.81163478,1898.8,1898.2,1.77274465]
[1772295469816,0.002,1899.0,1898.3,0.47056951]
[1772295470025,1.31849533,1899.0,1898.3,0.47056951]
[1772295470217,0.49501376,1898.9,1898.3,0.47056951]
[1772295470432,1.81163478,1898.8,1898.1,1.78762302]
[1772295473520,1.81163478,1898.8,1898.2,0.47056951]
[1772295474540,1.81163478,1898.8,1898.3,1.31696781]
[1772295474934,5.05352907,1898.7,1897.6,0.001]
[1772295475119,0.49501376,1898.6,1897.7,0.47056951]
[1772295476527,1.31682907,1898.5,1897.8,1.31731478]
[1772295476728,1.81184283,1898.5,1897.8,0.47056951]
[1772295477109,1.31682907,1898.5,1897.8,0.47056951]
[1772295477338,0.49501376,1898.4,1897.8,0.47056951]
[1772295477921,0.49501376,1898.4,1898.3,3.986274]
[1772295478117,0.49501376,1898.4,1897.8,0.47056951]
[1772295478749,1.31696781,1898.3,1897.8,1.78785339]
[1772295478940,1.31696781,1898.3,1897.9,0.001]
[1772295480264,1.81196082,1898.4,1897.9,0.001]
[1772295480473,1.81181116,1898.6,1897.9,0.47156951]
[1772295480824,1.81181116,1898.6,1897.9,1.7887708]
[1772295481153,0.49501376,1898.5,1897.9,0.001]
[1772295481320,0.49501376,1898.5,1897.9,1.31823046]
[1772295481726,0.49501376,1898.5,1897.9,0.001]
[1772295482226,0.49501376,1898.5,1897.9,1.31824401]
[1772295483352,0.49501376,1898.7,1897.9,0.47156951]
[1772295483552,1.31678623,1898.6,1897.9,0.47156951]
[1772295483750,1.81179999,1898.6,1897.9,0.47156951]
[1772295485543,0.49501376,1898.5,1897.9,1.78879356]
[1772295485780,0.49501376,1898.5,1897.9,0.001]